bitfinex/quotes_BTCUSD_20241028
["timestamp","ask_amount","ask_price","bid_price","bid_amount"]
[1730120643652,0.006,68905.0,68904.0,0.00082]
[1730120643864,0.21731099,68909.0,68905.0,0.005]
[1730120644536,0.21731099,68909.0,68904.0,0.00582]
[1730120644537,0.21731099,68909.0,68906.0,0.005]
[1730120645011,0.21731099,68919.0,68909.0,0.005]
[1730120645232,0.21731099,68912.0,68911.0,0.005]
[1730120645446,0.36240899,68919.0,68911.0,0.005]
[1730120645447,0.21731099,68919.0,68911.0,0.005]
[1730120645880,0.21731099,68919.0,68912.0,0.005]
[1730120646124,0.21731099,68919.0,68915.0,0.002]
[1730120646360,0.21731099,68926.0,68915.0,0.0207115]
[1730120646598,0.21731099,68926.0,68912.0,0.002]
[1730120646599,0.21731099,68926.0,68922.0,0.002]
[1730120646817,0.21731099,68926.0,68918.0,0.005]
[1730120646818,0.21731099,68926.0,68921.0,0.005]
[1730120648123,0.21731099,68926.0,68921.0,0.012]
[1730120648836,0.21831099,68926.0,68921.0,0.012]
[1730120649285,0.21731099,68933.0,68922.0,0.01]
[1730120649505,0.21731099,68933.0,68923.0,0.150088]
[1730120649714,0.001,68926.0,68923.0,0.005]
[1730120650211,0.001,68926.0,68922.0,0.005]
[1730120650212,0.21731099,68933.0,68928.0,0.005]
[1730120650443,0.21831099,68933.0,68929.0,0.005]
[1730120651993,0.21831099,68933.0,68922.0,0.005]
[1730120651994,0.14508,68928.0,68922.0,0.005]
[1730120652210,0.13606301,68926.0,68923.0,0.005]
[1730120652682,0.145079,68928.0,68923.0,0.005]
[1730120653119,0.13606301,68930.0,68923.0,0.005]
[1730120653338,0.21731099,68933.0,68923.0,0.0212096]
[1730120653562,0.36237999,68933.0,68923.0,0.01]
[1730120654008,0.21931099,68933.0,68926.0,0.002]
[1730120654219,0.36437999,68933.0,68926.0,0.002]
[1730120654431,0.36237999,68933.0,68926.0,0.002]
[1730120655118,0.31285207,68937.0,68926.0,0.002]
[1730120655119,0.21731099,68935.0,68929.0,0.005]
[1730120655345,0.21731099,68935.0,68931.0,0.002]
[1730120656468,0.22231099,68935.0,68931.0,0.002]
[1730120656938,0.005,68935.0,68931.0,0.002]
[1730120657366,0.009,68935.0,68931.0,0.002]
[1730120657581,0.009,68935.0,68933.0,0.005]
[1730120657797,0.009,68935.0,68934.0,0.01]
[1730120658454,0.004,68935.0,68934.0,0.01]
[1730120658678,0.006,68935.0,68934.0,0.01]
[1730120659146,0.00217771,68939.0,68934.0,0.015]
[1730120659370,0.21731099,68938.0,68934.0,0.015]
[1730120659822,0.002648,68935.0,68934.0,0.015]
[1730120660273,0.001648,68935.0,68934.0,0.01]
[1730120660692,0.002648,68935.0,68934.0,0.018]
[1730120661160,0.28377501,68935.0,68934.0,0.008]
[1730120661384,0.13871101,68935.0,68934.0,0.008]
[1730120661608,0.28377501,68935.0,68934.0,0.008]
[1730120661827,0.13871101,68935.0,68934.0,0.008]
[1730120662048,0.002648,68935.0,68934.0,0.008]
[1730120662482,0.003648,68935.0,68934.0,0.008]
[1730120663347,0.003648,68935.0,68934.0,0.013]
[1730120663805,0.003648,68935.0,68934.0,0.018]
[1730120664484,0.003648,68935.0,68934.0,0.0640217]
[1730120664706,0.003648,68935.0,68934.0,0.018]
[1730120664923,0.003648,68935.0,68934.0,0.165066]
[1730120665133,0.003648,68935.0,68934.0,0.170066]
[1730120665347,0.003648,68935.0,68934.0,0.025]
[1730120665559,0.003648,68935.0,68934.0,0.170066]
[1730120665998,0.003648,68935.0,68934.0,0.025]
[1730120666898,0.003648,68935.0,68934.0,0.023]
[1730120667132,0.003648,68935.0,68934.0,0.025]
[1730120667359,0.28477501,68935.0,68934.0,0.008]
[1730120667722,0.48057501,68935.0,68934.0,0.008]
[1730120667880,0.63107882,68935.0,68934.0,0.008]
[1730120668346,0.75035868,68935.0,68934.0,0.008]
[1730120668543,0.290169,68926.0,68918.0,0.005]
[1730120668667,0.145085,68925.0,68921.0,0.005]
[1730120669296,0.145089,68923.0,68921.0,0.005]
[1730120669508,0.145086,68925.0,68922.0,0.005]
[1730120669718,0.145088,68924.0,68918.0,0.005]
[1730120669927,0.21731099,68931.0,68910.0,0.005]
[1730120669928,0.13606301,68919.0,68910.0,0.005]
[1730120670155,0.21731099,68931.0,68909.0,0.005]
[1730120670156,0.13606301,68911.0,68909.0,0.005]
[1730120670380,0.145109,68914.0,68909.0,0.005]
[1730120670603,0.290219,68914.0,68908.0,0.005]
[1730120670838,0.145119,68909.0,68907.0,0.005]
[1730120671060,0.13606301,68911.0,68907.0,0.005]
[1730120671259,0.13606301,68911.0,68909.0,0.001]
[1730120671537,0.28117701,68911.0,68909.0,0.001]
[1730120671735,0.28117701,68911.0,68906.0,0.005]
[1730120671950,0.145117,68910.0,68907.0,0.003]
[1730120672179,0.21731099,68909.0,68905.0,0.000824]
[1730120672396,0.145125,68906.0,68905.0,0.000824]
[1730120674321,0.152125,68906.0,68905.0,0.001824]
[1730120675626,0.160125,68906.0,68905.0,0.001824]
[1730120678970,0.015,68906.0,68905.0,0.001824]
[1730120680134,0.02273801,68912.0,68905.0,0.000824]
[1730120680388,0.003,68906.0,68905.0,0.000824]
[1730120680597,0.005,68906.0,68905.0,0.000824]
[1730120681276,0.005,68906.0,68905.0,0.005824]
[1730120681498,0.005,68906.0,68905.0,0.010824]
[1730120681736,0.145109,68914.0,68907.0,0.007]
[1730120682187,0.003,68912.0,68907.0,0.012]
[1730120682627,0.145108,68914.0,68908.0,0.005]
[1730120682866,0.14511,68913.0,68908.0,0.005]
[1730120683059,0.001,68914.0,68908.0,0.005]
[1730120683271,0.001,68914.0,68913.0,0.002]
[1730120683494,0.21731099,68915.0,68912.0,0.002]
[1730120683994,0.002,68914.0,68912.0,0.002]
[1730120684190,0.002,68914.0,68911.0,0.002]
[1730120685084,0.002,68914.0,68909.0,0.005]
[1730120685085,0.002,68914.0,68909.0,0.007]
[1730120685318,0.36241699,68915.0,68909.0,0.007]
[1730120685540,0.006,68915.0,68911.0,0.001]
[1730120685752,0.151108,68915.0,68912.0,0.03]
[1730120686199,0.006,68915.0,68912.0,0.03]
[1730120686397,0.13606301,68916.0,68915.0,0.002]
[1730120686874,0.36239999,68923.0,68917.0,0.005]
[1730120687079,0.21731099,68923.0,68918.0,0.0047]
[1730120687319,0.145092,68922.0,68919.0,0.002]
[1730120687527,0.50749299,68923.0,68919.0,0.002]
[1730120687528,0.21731099,68923.0,68919.0,0.002]
[1730120687745,0.145092,68922.0,68918.0,0.0047]
[1730120687946,0.21731099,68923.0,68918.0,0.0047]
[1730120688154,0.290185,68922.0,68918.0,0.0047]
[1730120688390,0.145097,68920.0,68918.0,0.0047]
[1730120688602,0.145097,68920.0,68919.0,0.001]
[1730120688814,0.145097,68920.0,68918.0,0.0047]
[1730120689024,0.22431099,68923.0,68918.0,0.0047]
[1730120689244,0.22431099,68923.0,68918.0,0.0057]
[1730120689455,0.145093,68922.0,68918.0,0.0057]
[1730120689665,0.21731099,68923.0,68918.0,0.0047]
[1730120689864,0.21731099,68923.0,68916.0,0.0067]
[1730120690078,0.006,68920.0,68918.0,0.0057]
[1730120690293,0.006,68920.0,68919.0,0.002]
[1730120690512,0.006,68920.0,68918.0,0.001]
[1730120691812,0.005,68923.0,68917.0,0.0067]
[1730120692015,0.145091,68922.0,68918.0,0.002]
[1730120692439,0.145095,68921.0,68917.0,0.0047]
[1730120692653,0.145095,68921.0,68918.0,0.002]
[1730120693105,0.1078823,68921.0,68917.0,0.0047]
[1730120693358,0.13606301,68919.0,68908.0,0.002]
[1730120693587,0.13606301,68910.0,68909.0,0.0097]
[1730120693817,0.13606301,68910.0,68909.0,0.005]
[1730120694277,0.13606301,68914.0,68909.0,0.0097]
[1730120694532,0.13606301,68914.0,68911.0,0.005]
[1730120695678,0.13606301,68914.0,68910.0,0.0047]
[1730120695916,0.13706301,68914.0,68907.0,0.005]
[1730120696137,0.13706301,68914.0,68905.0,0.000824]
[1730120696138,0.13606301,68908.0,68905.0,0.000824]
[1730120697050,0.1865,68914.0,68905.0,0.002824]
[1730120697281,0.1865,68914.0,68909.0,0.002]
[1730120697282,0.21731099,68910.0,68909.0,0.002]
[1730120697508,0.21731099,68910.0,68909.0,0.005]
[1730120697979,0.13606301,68916.0,68909.0,0.005]
[1730120698219,0.21731099,68917.0,68909.0,0.007]
[1730120698686,0.21731099,68917.0,68909.0,0.008]
[1730120698910,0.21731099,68917.0,68909.0,0.007]
[1730120699368,0.36241299,68917.0,68909.0,0.008]
[1730120699618,0.145106,68915.0,68909.0,0.005]
[1730120700054,0.13606301,68915.0,68909.0,0.006]
[1730120700499,0.001648,68920.0,68912.0,0.005]
[1730120700737,0.21731099,68917.0,68916.0,0.002]
[1730120700970,0.21731099,68917.0,68914.0,0.0047]
[1730120701202,0.001648,68920.0,68914.0,0.0047]
[1730120702370,0.004648,68920.0,68914.0,0.0047]
[1730120702585,0.145098,68919.0,68914.0,0.0047]
[1730120703055,0.005648,68920.0,68914.0,0.0047]
[1730120703274,0.29684,68920.0,68914.0,0.0047]
[1730120703493,0.29684,68920.0,68913.0,0.005]
[1730120703494,0.13606301,68917.0,68913.0,0.005]
[1730120703712,0.435331,68913.0,68906.0,0.005]
[1730120703931,0.13606301,68909.0,68908.0,0.005]
[1730120704862,0.42628601,68913.0,68909.0,0.005]
[1730120705083,0.435337,68912.0,68906.0,0.005]
[1730120705299,0.13606301,68909.0,68906.0,0.005]
[1730120705526,0.13606301,68909.0,68907.0,0.005]
[1730120705754,0.13606301,68909.0,68906.0,0.005]
[1730120706111,0.145123,68907.0,68906.0,0.005]
[1730120706325,0.145123,68907.0,68906.0,0.006]
[1730120706745,0.145123,68907.0,68906.0,0.005]
[1730120706946,0.13606301,68909.0,68907.0,0.005]
[1730120707596,0.28118301,68909.0,68907.0,0.005]
[1730120707794,0.13606301,68909.0,68907.0,0.005]
[1730120708361,0.42626901,68917.0,68909.0,0.005]
[1730120708612,0.21731099,68914.0,68912.0,0.005]
[1730120708836,0.21731099,68914.0,68913.0,0.002]
[1730120709276,0.001648,68918.0,68917.0,0.002]
[1730120709492,0.001648,68918.0,68912.0,0.005]
[1730120709493,0.001648,68918.0,68916.0,0.007]
[1730120709696,0.21731099,68917.0,68916.0,0.007]
[1730120709942,0.001648,68918.0,68916.0,0.0117]
[1730120710149,0.001648,68918.0,68917.0,0.147102]
[1730120710374,0.001648,68918.0,68917.0,0.002]
[1730120710840,0.001648,68918.0,68917.0,0.147102]
[1730120711051,0.001648,68918.0,68917.0,0.161802]
[1730120711497,0.001648,68918.0,68917.0,0.44836882]
[1730120711708,0.001648,68918.0,68917.0,0.4915568]
[1730120711926,0.001648,68918.0,68917.0,0.5131508]
[1730120712164,0.001648,68918.0,68917.0,0.5950508]
[1730120712387,0.001648,68918.0,68917.0,0.5538294]
[1730120712839,0.002648,68918.0,68917.0,0.5598294]
[1730120713070,0.003648,68918.0,68917.0,0.5598294]
[1730120713276,0.003648,68918.0,68917.0,0.5538294]
[1730120713277,0.002648,68918.0,68917.0,0.5538294]
[1730120713493,0.001648,68918.0,68917.0,0.5538294]
[1730120713730,0.001648,68918.0,68917.0,0.64033742]
[1730120713939,0.002648,68918.0,68917.0,0.64233742]
[1730120714152,0.003648,68918.0,68917.0,0.65633742]
[1730120714591,0.003648,68918.0,68917.0,0.5698294]
[1730120715503,0.003648,68918.0,68917.0,0.56985942]
[1730120715753,0.003648,68918.0,68917.0,0.24751854]
[1730120715980,0.003648,68918.0,68917.0,0.023]
[1730120717361,0.003648,68918.0,68917.0,0.021]
[1730120718057,0.078848,68918.0,68917.0,0.016]
[1730120718289,0.003648,68918.0,68917.0,0.021]
[1730120719436,0.002648,68918.0,68917.0,0.009]
[1730120719663,0.002648,68918.0,68917.0,0.007]
[1730120719664,0.001648,68918.0,68917.0,0.007]
[1730120719893,0.001648,68918.0,68917.0,0.008]
[1730120720357,0.001648,68918.0,68917.0,0.003]
[1730120720588,0.001648,68918.0,68917.0,0.003824]
[1730120720589,0.146747,68918.0,68917.0,0.003824]
[1730120720846,0.001648,68918.0,68917.0,0.003824]
[1730120721075,0.001648,68918.0,68917.0,0.005824]
[1730120721774,0.001648,68918.0,68917.0,0.003824]
[1730120721987,0.001648,68918.0,68917.0,0.005824]
[1730120722210,0.001648,68918.0,68917.0,0.004824]
[1730120722667,0.001648,68918.0,68917.0,0.003824]
[1730120722882,0.001648,68918.0,68917.0,0.001824]
[1730120723068,0.001648,68918.0,68917.0,0.002824]
[1730120723330,0.001648,68918.0,68917.0,0.004824]
[1730120723552,0.001648,68918.0,68917.0,0.003824]
[1730120723766,0.001648,68918.0,68917.0,0.001824]
[1730120724013,0.001648,68918.0,68917.0,0.002824]
[1730120724445,0.001648,68918.0,68917.0,0.003824]
[1730120725377,0.001648,68918.0,68917.0,0.001824]
[1730120725577,0.29725081,68918.0,68917.0,0.001824]
[1730120725802,0.15215181,68918.0,68917.0,0.001824]
[1730120726496,0.15315181,68918.0,68917.0,0.000824]
[1730120726932,0.15215181,68918.0,68917.0,0.000824]
[1730120727401,0.15715181,68918.0,68917.0,0.000824]
[1730120727572,0.16315181,68918.0,68917.0,0.000824]
[1730120727746,0.15815181,68918.0,68917.0,0.000824]
[1730120728162,0.16115181,68918.0,68917.0,0.000824]
[1730120729387,0.15515181,68918.0,68917.0,0.000824]
[1730120729825,0.008648,68918.0,68917.0,0.000824]
[1730120730844,0.005648,68918.0,68917.0,0.000824]
[1730120731204,0.001648,68918.0,68917.0,0.000824]
[1730120732467,0.001648,68918.0,68917.0,0.0306281]
[1730120732669,0.002648,68918.0,68917.0,0.1827301]
[1730120733240,0.001648,68918.0,68917.0,0.1827301]
[1730120733483,0.001648,68918.0,68917.0,0.1894301]
[1730120733669,0.001648,68918.0,68917.0,0.158626]
[1730120733926,0.001648,68918.0,68917.0,0.164626]
[1730120734140,0.002648,68918.0,68917.0,0.164626]
[1730120734327,0.001648,68918.0,68917.0,0.158626]
[1730120734542,0.001648,68918.0,68917.0,0.157626]
[1730120734691,0.002648,68918.0,68917.0,0.168626]
[1730120736141,0.002648,68918.0,68917.0,0.169626]
[1730120736544,0.002648,68918.0,68917.0,0.46309483]
[1730120736759,0.002648,68918.0,68917.0,0.46019282]
[1730120736989,0.003648,68918.0,68917.0,0.46119282]
[1730120737201,0.001648,68920.0,68919.0,0.007]
[1730120737416,0.001648,68920.0,68919.0,0.26519667]
[1730120737623,0.001648,68920.0,68919.0,0.32141306]
[1730120737840,0.001648,68920.0,68919.0,0.40787033]
[1730120738054,0.001648,68920.0,68919.0,0.32141306]
[1730120738266,0.001648,68920.0,68919.0,0.42948465]
[1730120738477,0.001648,68920.0,68919.0,0.4294903]
[1730120738682,0.001648,68920.0,68919.0,0.40785465]
[1730120738900,0.001648,68920.0,68919.0,0.40785794]
[1730120739112,0.001648,68920.0,68919.0,0.47191687]
[1730120739320,0.001648,68920.0,68919.0,0.31430081]
[1730120739526,0.003648,68920.0,68919.0,0.32330081]
[1730120739745,0.003648,68920.0,68919.0,0.36652322]
[1730120741658,0.003648,68920.0,68919.0,0.170797]
[1730120741897,0.003648,68920.0,68919.0,0.172797]
[1730120743230,0.003648,68920.0,68919.0,0.41878625]
[1730120743446,0.003648,68920.0,68919.0,0.39718707]
[1730120743670,0.003648,68920.0,68919.0,0.2376427]
[1730120746106,0.003648,68920.0,68919.0,0.172797]
[1730120747629,0.003648,68920.0,68919.0,0.0277]
[1730120747841,0.13971101,68920.0,68919.0,0.016]
[1730120748059,0.36800601,68920.0,68919.0,0.011]
[1730120748309,0.51850982,68920.0,68919.0,0.011]
[1730120748531,0.73290982,68920.0,68919.0,0.011]
[1730120749225,0.59584681,68920.0,68919.0,0.009]
[1730120749433,0.145099,68918.0,68917.0,0.000824]
[1730120749655,0.43166582,68918.0,68917.0,0.000824]
[1730120750362,0.28116201,68918.0,68917.0,0.000824]
[1730120750563,0.30389957,68918.0,68917.0,0.000824]
[1730120751835,0.45440338,68918.0,68917.0,0.000824]
[1730120752097,0.46540338,68918.0,68917.0,0.001824]
[1730120752547,0.46540338,68918.0,68917.0,0.000824]
[1730120752753,0.47540338,68918.0,68917.0,0.001824]
[1730120752961,0.46440338,68918.0,68917.0,0.001824]
[1730120753397,0.47440338,68918.0,68917.0,0.001824]
[1730120754245,0.55570338,68918.0,68917.0,0.001824]
[1730120754905,0.55575338,68918.0,68917.0,0.001824]
[1730120755537,0.57875338,68918.0,68917.0,0.001824]
[1730120755756,0.168123,68907.0,68906.0,0.000824]
[1730120755979,0.43168982,68907.0,68906.0,0.000824]
[1730120756933,0.43168982,68907.0,68906.0,0.002824]
[1730120757151,0.43168982,68907.0,68906.0,0.000824]
[1730120757639,0.44268982,68907.0,68906.0,0.001824]
[1730120758714,0.45368982,68907.0,68906.0,0.001824]
[1730120758916,0.44268982,68907.0,68906.0,0.000824]
[1730120759125,0.44868982,68907.0,68906.0,0.000824]
[1730120759333,0.43768982,68907.0,68906.0,0.000824]
[1730120759546,0.43868982,68907.0,68906.0,0.000824]
[1730120759787,0.44668982,68907.0,68906.0,0.000824]
[1730120759981,0.43968982,68907.0,68906.0,0.000824]
[1730120760421,0.44968982,68907.0,68906.0,0.000824]
[1730120760640,0.30456682,68907.0,68906.0,0.000824]
[1730120761081,0.018,68907.0,68906.0,0.000824]
[1730120761763,0.018,68907.0,68906.0,0.002824]
[1730120761967,0.018,68907.0,68906.0,0.007824]
[1730120762179,0.018,68907.0,68906.0,0.012524]
[1730120762440,0.008,68907.0,68906.0,0.012524]
[1730120762658,0.13606301,68916.0,68909.0,0.00195]
[1730120762862,0.21731099,68910.0,68909.0,0.00195]
[1730120763088,0.13606301,68916.0,68909.0,0.00195]
[1730120763301,0.02273736,68915.0,68909.0,0.00195]
[1730120763778,0.02273736,68915.0,68909.0,0.03195]
[1730120765079,0.02273736,68915.0,68909.0,0.03795]
[1730120765308,0.02373736,68915.0,68910.0,0.005]
[1730120765755,0.02373736,68915.0,68910.0,0.0097]
[1730120766213,0.13606301,68911.0,68910.0,0.005]
[1730120766440,0.28117701,68911.0,68910.0,0.005]
[1730120766652,0.13606301,68911.0,68910.0,0.005]
[1730120768262,0.13806301,68911.0,68910.0,0.005]
[1730120769140,0.002,68911.0,68910.0,0.005]
[1730120769820,0.002,68911.0,68910.0,0.00695]
[1730120770088,0.00205,68911.0,68910.0,0.0373046]
[1730120770524,0.00205,68911.0,68910.0,0.00695]
[1730120770734,0.00205,68911.0,68910.0,0.01165]
[1730120770961,0.00205,68911.0,68910.0,0.161766]
[1730120775928,0.003696,68911.0,68910.0,0.161766]
[1730120776395,0.003696,68911.0,68910.0,0.01665]
[1730120776602,0.003696,68911.0,68910.0,0.161766]
[1730120777982,0.002696,68911.0,68910.0,0.165766]
[1730120778459,0.003696,68911.0,68910.0,0.166766]
[1730120779122,0.003696,68911.0,68910.0,0.02165]
[1730120779343,0.003696,68911.0,68910.0,0.01]
[1730120780906,0.002696,68911.0,68910.0,0.006]
[1730120781130,0.002696,68911.0,68910.0,0.008]
[1730120781580,0.001696,68911.0,68910.0,0.007]
[1730120781804,0.001696,68911.0,68910.0,0.161816]
[1730120782030,0.001696,68911.0,68910.0,0.163766]
[1730120784141,0.001696,68911.0,68910.0,0.161766]
[1730120784366,0.002696,68911.0,68910.0,0.166766]
[1730120784573,0.003696,68911.0,68910.0,0.167766]
[1730120784800,0.003696,68911.0,68910.0,0.31617195]
[1730120784801,0.002696,68911.0,68910.0,0.31617195]
[1730120785044,0.003696,68911.0,68910.0,0.31826981]
[1730120785496,0.001696,68911.0,68910.0,0.31226981]
[1730120785728,0.003696,68911.0,68910.0,0.31826981]
[1730120786624,0.003696,68911.0,68910.0,0.167766]
[1730120787947,0.002696,68911.0,68910.0,0.166766]
[1730120788153,0.002696,68911.0,68910.0,0.162766]
[1730120788626,0.003696,68911.0,68910.0,0.167766]
[1730120788829,0.003696,68911.0,68910.0,0.23274095]
[1730120789031,0.003696,68911.0,68910.0,0.31826981]
[1730120789457,0.004696,68911.0,68910.0,0.32326981]
[1730120790300,0.004696,68911.0,68910.0,0.36659845]
[1730120790504,0.004696,68911.0,68910.0,0.32326981]
[1730120790742,0.004696,68911.0,68910.0,0.38824476]
[1730120791801,0.004696,68911.0,68910.0,0.32326981]
[1730120793588,0.004696,68911.0,68910.0,0.54829029]
[1730120793715,0.004696,68911.0,68910.0,0.48327309]
[1730120794341,0.004696,68911.0,68910.0,0.18765328]
[1730120794604,0.004696,68911.0,68910.0,0.17100328]
[1730120794814,0.004696,68911.0,68910.0,0.17600328]
[1730120795471,0.003696,68911.0,68910.0,0.17500328]
[1730120795692,0.001696,68911.0,68910.0,0.005]
[1730120795939,0.002696,68911.0,68910.0,0.00795]
[1730120796176,0.003696,68911.0,68910.0,0.011]
[1730120796384,0.002696,68911.0,68910.0,0.01]
[1730120797262,0.001696,68911.0,68910.0,0.005]
[1730120797493,0.001696,68911.0,68909.0,0.035823]
[1730120797710,0.001696,68911.0,68910.0,0.007]
[1730120798621,0.001696,68911.0,68910.0,0.00695]
[1730120800164,0.001696,68911.0,68910.0,0.005]
[1730120800639,0.001696,68911.0,68910.0,0.007]
[1730120800864,0.001696,68911.0,68910.0,0.00895]
[1730120801100,0.001696,68911.0,68910.0,0.007]
[1730120801868,0.14681,68911.0,68910.0,0.002]
[1730120802070,0.57021381,68911.0,68910.0,0.002]
[1730120802784,0.274596,68911.0,68910.0,0.002]
[1730120802945,0.275596,68911.0,68910.0,0.002]
[1730120803539,0.275596,68911.0,68909.0,0.000823]
[1730120803760,0.29933389,68911.0,68909.0,0.000823]
[1730120803969,0.02643389,68911.0,68910.0,0.156766]
[1730120804170,0.02543389,68911.0,68910.0,0.01665]
[1730120804395,0.02543389,68911.0,68910.0,0.161766]
[1730120804614,0.004696,68911.0,68910.0,0.161766]
[1730120804843,0.004696,68911.0,68910.0,0.32206467]
[1730120805081,0.001696,68911.0,68910.0,0.32206467]
[1730120805507,0.002696,68911.0,68910.0,0.32306467]
[1730120805917,0.001696,68911.0,68910.0,0.32206467]
[1730120806178,0.001696,68911.0,68910.0,0.161766]
[1730120806818,0.002696,68911.0,68910.0,0.165766]
[1730120807402,0.003696,68911.0,68910.0,0.166766]
[1730120809869,0.003696,68911.0,68910.0,0.48259173]
[1730120810091,5e-05,68918.0,68917.0,0.161752]
[1730120810319,5e-05,68918.0,68917.0,0.31225581]
[1730120810558,5e-05,68918.0,68917.0,0.47257773]
[1730120811030,5e-05,68918.0,68917.0,0.55097773]
[1730120811281,5e-05,68918.0,68917.0,0.56797773]
[1730120811480,5e-05,68918.0,68917.0,0.80436232]
[1730120811692,0.00162653,68918.0,68917.0,0.99672881]
[1730120811903,0.00262653,68918.0,68917.0,0.94442533]
[1730120812110,0.00262653,68918.0,68917.0,1.08048834]
[1730120812338,0.21736099,68930.0,68920.0,0.257045]
[1730120812544,0.21736099,68930.0,68920.0,0.61305532]
[1730120813011,0.21736099,68930.0,68920.0,0.74911833]
[1730120813229,0.21736099,68930.0,68920.0,0.61305532]
[1730120813446,0.21736099,68930.0,68920.0,0.56787073]
[1730120813678,0.21736099,68930.0,68920.0,0.70393374]
[1730120814061,0.21736099,68930.0,68920.0,0.56787073]
[1730120814296,0.21736099,68930.0,68920.0,0.71593374]
[1730120814765,0.21736099,68930.0,68929.0,0.31278901]
[1730120814995,0.21736099,68930.0,68929.0,0.73182663]
[1730120815514,0.21736099,68930.0,68929.0,0.71014444]
[1730120815958,0.21736099,68930.0,68929.0,0.70956166]
[1730120816188,5e-05,68930.0,68929.0,0.70956166]
[1730120816425,5e-05,68930.0,68929.0,0.62302107]
[1730120817414,5e-05,68930.0,68929.0,0.52814792]
[1730120818050,0.00205,68930.0,68929.0,0.55214792]
[1730120818268,0.00205,68930.0,68929.0,0.34122981]
[1730120818491,0.0021,68930.0,68929.0,0.34122981]
[1730120819205,0.0021,68930.0,68929.0,0.34622981]
[1730120819427,0.0021,68930.0,68929.0,0.35122981]
[1730120819648,0.0021,68930.0,68929.0,0.39446897]
[1730120820396,0.0021,68930.0,68929.0,0.35122981]
[1730120820606,0.0021,68930.0,68929.0,0.34122981]
[1730120820829,0.0021,68930.0,68929.0,0.024]
[1730120821046,0.0021,68930.0,68929.0,0.04065]
[1730120821867,0.0011,68930.0,68929.0,0.0277]
[1730120822954,0.0001,68930.0,68929.0,0.0147]
[1730120823465,0.0001,68930.0,68929.0,0.029]
[1730120823466,0.0021,68930.0,68929.0,0.029]
[1730120823708,0.0788,68930.0,68929.0,0.029]
[1730120823930,0.0788,68930.0,68929.0,0.025]
[1730120823931,0.079446,68930.0,68929.0,0.025]
[1730120824140,0.079446,68930.0,68929.0,0.03]
[1730120824141,0.081446,68930.0,68929.0,0.03]
[1730120824785,0.081446,68930.0,68929.0,0.2053996]
[1730120825005,0.004746,68930.0,68929.0,0.186726]
[1730120825936,0.004746,68930.0,68929.0,0.04165]
[1730120826604,0.004746,68930.0,68929.0,0.186726]
[1730120829741,0.39950901,68930.0,68929.0,0.0347]
[1730120829961,0.263446,68930.0,68929.0,0.0347]
[1730120830405,0.263446,68930.0,68929.0,0.0297]
[1730120830641,0.263446,68930.0,68929.0,0.0347]
[1730120831303,0.263446,68930.0,68929.0,0.0397]
[1730120831304,0.004746,68930.0,68929.0,0.0397]
[1730120831520,0.004746,68930.0,68929.0,0.184776]
[1730120832160,0.004746,68930.0,68929.0,0.186726]
[1730120835042,0.004746,68930.0,68929.0,0.186726]
[1730120837376,0.083446,68930.0,68929.0,0.0347]
[1730120838409,0.083446,68930.0,68929.0,0.025]
[1730120838410,0.44583099,68930.0,68929.0,0.025]
[1730120838857,0.42502,68930.0,68929.0,0.025]
[1730120839207,0.279946,68930.0,68929.0,0.025]
[1730120839422,0.42502,68930.0,68929.0,0.025]
[1730120839665,0.42402,68930.0,68929.0,0.02]
[1730120839882,0.42802,68930.0,68929.0,0.001]
[1730120840123,0.282946,68930.0,68929.0,0.001]
[1730120840338,0.279946,68930.0,68927.0,0.005]
[1730120840782,0.21731099,68929.0,68926.0,0.0047]
[1730120840998,0.21731099,68929.0,68927.0,0.005]
[1730120841349,0.353374,68929.0,68927.0,0.005]
[1730120842393,0.353374,68929.0,68925.0,0.005]
[1730120842691,0.44675353,68930.0,68927.0,0.005]
[1730120842692,0.30167853,68930.0,68927.0,0.005]
[1730120842887,0.29967853,68930.0,68927.0,0.0097]
[1730120843239,0.29967853,68930.0,68929.0,0.00195]
[1730120844110,0.30167853,68930.0,68928.0,0.00195]
[1730120844534,0.29967853,68930.0,68928.0,0.00195]
[1730120844820,0.30267853,68930.0,68928.0,0.00195]
[1730120845050,0.30667853,68930.0,68928.0,0.00195]
[1730120845958,0.30367853,68930.0,68928.0,0.00195]
[1730120846439,0.30167853,68930.0,68928.0,0.0181238]
[1730120846663,0.30167853,68930.0,68928.0,0.0231238]
[1730120846869,0.281946,68930.0,68928.0,0.00695]
[1730120850899,0.006746,68930.0,68929.0,0.159776]
[1730120851122,0.02947752,68930.0,68929.0,0.159776]
[1730120851561,0.006746,68930.0,68929.0,0.161726]
[1730120852509,0.004746,68930.0,68929.0,0.161726]
[1730120852741,0.004746,68930.0,68929.0,0.174726]
[1730120852742,0.005746,68930.0,68929.0,0.174726]
[1730120852957,0.004746,68930.0,68929.0,0.161726]
[1730120853188,0.001746,68930.0,68929.0,0.161726]
[1730120853448,0.003746,68930.0,68929.0,0.181726]
[1730120853654,0.003746,68930.0,68929.0,0.167726]
[1730120854079,0.002746,68930.0,68929.0,0.161726]
[1730120854299,0.003746,68930.0,68929.0,0.171726]
[1730120854534,0.004746,68930.0,68929.0,0.185726]
[1730120855199,0.004746,68930.0,68929.0,0.22904942]
[1730120855832,0.004746,68930.0,68929.0,0.185726]
[1730120856486,0.004746,68930.0,68929.0,0.22908012]
[1730120858013,0.004746,68930.0,68929.0,0.185726]
[1730120858982,0.004746,68930.0,68929.0,0.18862725]